[Event "18th Chefchaouen Open 2019"]
[Site "Chefchaouen"]
[Date "2019.07.20"]
[Round "8.4"]
[White "Karpatchev, Aleksandr"]
[Black "Elomari, Anas"]
[Result "1-0"]
[ECO "B02"]
[WhiteElo "2445"]
[BlackElo "2122"]
[Annotator "NA"]
[PlyCount "77"]
[EventDate "2019.07.15"]
[EventType "swiss"]
[EventCountry "MAR"]
[SourceTitle "playchess.com"]
[Source "ChessBase"]
[SourceQuality "1"]
[TimeControl "5400+30"]

1. e4 {[%emt 0:00:00]} Nf6 {[%emt 0:00:00]} 2. e5 {[%emt 0:00:15]} Nd5 {[%emt 0:00:08]} 3. c4 {[%emt 0:00:09]} Nb6 {[%emt 0:00:11]} 4. c5 {[%emt 0:00:04]} Nd5 {[%emt 0:00:42]} 5. Nc3 {[%emt 0:00:03]} Nxc3 {[%emt 0:00:25]} 6. dxc3 {[%emt 0:04:22]} Nc6 {[%emt 0:07:49]} 7. Bf4 {[%emt 0:05:27] B02: Alekhine's Defence: Chase Variation and lines with early Nc3} b6 {[%emt 0:06:53]} 8. Bc4 $146 {[%emt 0:05:49]} ({Predecessor:} 8. cxb6 axb6 9. Bc4 e6 10. Qg4 g5 11. Qxg5 Qxg5 12. Bxg5 Rg8 13. Bf6 Rxg2 14. Nh3 Bb7 {0-1 (33) Navarro Segura,R (2292)-Almeida Quintana,O (2473) Merida 2001}) 8... Bb7 {[%emt 0:07:39]} 9. Nf3 {[%emt 0:04:38]} e6 {[%emt 0:01:05]} 10. Qe2 {[%emt 0:04:11]} Be7 {[%emt 0:07:49]} 11. h4 {[%emt 0:02:00]} h6 {[%emt 0:05:35]} 12. h5 {[%emt 0:01:13]} bxc5 {[%emt 0:00:35]} 13. Rh3 {[%emt 0:03:56]} Qb8 {[%emt 0:09:32]} 14. Rg3 {[%emt 0:01:08]} Bf8 {[%emt 0:00:16]} 15. Bd3 {[%emt 0:04:47]} a5 {[%emt 0:00:34]} 16. Rd1 {[%emt 0:01:54]} Qa7 {[%emt 0:01:00]} 17. Bb5 {[%emt 0:03:46]} a4 {[%emt 0:02:06]} 18. Qd3 {[%emt 0:07:42]} O-O-O {[%emt 0:02:24]} 19. a3 {[%emt 0:03:05]} Nb8 $16 {[%emt 0:05:58]} (19... Qa5 $11) 20. Qc2 {[%emt 0:05:19]} Bc6 {[%emt 0:00:24]} 21. Bxc6 {[%emt 0:02:20]} Nxc6 {[%emt 0:00:02]} 22. Rg4 {[%emt 0:00:20]} d5 {[%emt 0:08:57]} 23. Be3 {[%emt 0:05:12]} Qb7 {[%emt 0:11:33]} 24. Qxa4 {[%emt 0:00:50]} Nb8 {[%emt 0:06:04]} 25. b4 {[%emt 0:07:13]} Qa6 {[%emt 0:02:48]} 26. Qc2 {[%emt 0:02:45]} c4 {[%emt 0:00:04]} 27. a4 {[%emt 0:00:56]} Nd7 {[%emt 0:00:27]} 28. a5 {[%emt 0:01:05]} c6 {[%emt 0:01:05]} 29. Rb1 {[%emt 0:02:11]} Kc7 {[%emt 0:00:17]} 30. Rf4 {[%emt 0:03:52]} f6 {[%emt 0:04:42]} 31. Nd4 {[%emt 0:03:27]} Re8 {[%emt 0:01:40]} 32. b5 {[%emt 0:00:23]} cxb5 {[%emt 0:01:12]} 33. Nxb5+ {[%emt 0:00:08]} Kd8 {[%emt 0:00:09]} 34. Bb6+ {[%emt 0:03:36]} Nxb6 {[%emt 0:00:34]} 35. axb6 {[%emt 0:00:02]} Qxb6 {[%emt 0:05:29]} 36. Nd6 {[%emt 0:03:34]} Qc7 {[%emt 0:00:03]} 37. Qa4 {[%emt 0:01:36]} Bxd6 {[%emt 0:00:34]} 38. exd6 {[%emt 0:00:07]} Qxd6 {[%emt 0:00:21]} 39. Rb7 {[%emt 0:00:19]} 1-0

[Event "18th Chefchaouen Open 2019"]
[Site "Chefchaouen"]
[Date "2019.07.20"]
[Round "8.6"]
[White "Benaddi, Mouhcine"]
[Black "Gorbatov, Alexej"]
[Result "0-1"]
[ECO "A46"]
[WhiteElo "2111"]
[BlackElo "2374"]
[Annotator "NA"]
[PlyCount "99"]
[EventDate "2019.07.15"]
[EventType "swiss"]
[EventCountry "MAR"]
[SourceTitle "playchess.com"]
[Source "ChessBase"]
[SourceQuality "1"]
[TimeControl "5400+30"]

1. d4 {[%emt 0:01:34]} Nf6 {[%emt 0:00:00]} 2. Nf3 {[%emt 0:00:07]} e6 {[%emt 0:00:17]} 3. g3 {[%emt 0:00:20]} b5 {[%emt 0:00:55]} 4. Bg2 {[%emt 0:00:08]} Bb7 {[%emt 0:00:03]} 5. O-O {[%emt 0:00:08]} c5 {[%emt 0:00:09]} 6. c3 {[%emt 0:06:05]} Na6 {[%emt 0:07:53]} 7. Bg5 {[%emt 0:06:07]} Be7 {[%emt 0:02:31]} 8. Qd3 {[%emt 0:03:33] A46: 1 d4 Nf6 2 Nf3 e6: Torre, London and Colle Systems} (8. e3 O-O 9. Nbd2 h6 10. Bxf6 Bxf6 11. Qe2 Qb6 12. a4 b4 13. a5 Qc7 14. Rfc1 bxc3 15. bxc3 Rfc8 16. Ne1 Bxg2 17. Kxg2 {1-0 (55) Georgiev,K (2623)-Fedorchuk,S (2648) Riadh 2017}) 8... Qb6 {[%emt 0:03:53]} 9. Nbd2 {[%emt 0:03:30]} d5 {[%emt 0:06:17]} 10. Ne5 {[%emt 0:07:22]} cxd4 {[%emt 0:01:15]} 11. Qxd4 $146 {[%emt 0:02:19]} ({Predecessor:} 11. cxd4 Nb4 12. Qb3 Nc6 13. Ndf3 h6 14. Bf4 Na5 15. Qd3 Nc4 {1-0 (41) Kempter,R (2248)-Smirnov,A (2444) Bad Wiessee 2011}) 11... Nc5 {[%emt 0:01:17]} 12. Nd3 {[%emt 0:02:22]} Ncd7 {[%emt 0:07:32]} 13. a4 {[%emt 0:03:14]} Qxd4 {[%emt 0:09:25]} 14. cxd4 {[%emt 0:00:12]} b4 {[%emt 0:00:01]} 15. Rfe1 {[%emt 0:07:43]} Rc8 {[%emt 0:01:56]} 16. Rac1 {[%emt 0:04:38]} O-O {[%emt 0:00:18]} 17. e3 {[%emt 0:00:58]} Bc6 {[%emt 0:06:27]} 18. b3 {[%emt 0:05:27]} Bb7 {[%emt 0:00:34]} 19. Ne5 $11 {[%emt 0:04:16]} Nb8 {[%emt 0:02:07]} 20. e4 {[%emt 0:06:38]} h6 {[%emt 0:04:04]} 21. exd5 {[%emt 0:03:33]} Bxd5 {[%emt 0:03:18]} 22. Bxf6 {[%emt 0:01:48]} gxf6 {[%emt 0:02:20]} 23. Bxd5 {[%emt 0:05:50]} fxe5 {[%emt 0:02:34]} 24. Bb7 {[%emt 0:00:41]} Rxc1 {[%emt 0:04:19]} 25. Rxc1 {[%emt 0:00:01]} exd4 {[%emt 0:04:50]} 26. f4 {[%emt 0:00:52]} Rd8 {[%emt 0:03:26]} 27. Rc7 {[%emt 0:01:12]} Bd6 {[%emt 0:08:09]} 28. Rc4 {[%emt 0:00:03]} Nd7 {[%emt 0:00:52]} 29. Kf1 {[%emt 0:00:56]} d3 {[%emt 0:04:49]} 30. Ne4 {[%emt 0:07:38]} Be7 {[%emt 0:01:11]} 31. Rd4 {[%emt 0:01:46]} f5 {[%emt 0:00:22]} 32. Nd2 {[%emt 0:02:35]} Nc5 {[%emt 0:00:47]} 33. Rxd8+ {[%emt 0:00:38]} Bxd8 {[%emt 0:00:01]} 34. Bc6 {[%emt 0:00:21]} Bf6 {[%emt 0:00:20]} 35. Bb5 {[%emt 0:12:55]} Bc3 {[%emt 0:00:19]} 36. Nb1 {[%emt 0:00:00]} d2 {[%emt 0:04:16]} 37. Ke2 {[%emt 0:00:00]} Nxb3 {[%emt 0:00:12]} 38. Bc4 {[%emt 0:00:00]} Nc5 {[%emt 0:00:54]} 39. Nxd2 {[%emt 0:00:00]} Bxd2 {[%emt 0:00:07]} 40. Kxd2 {[%emt 0:00:00]} Kf7 {[%emt 0:00:02]} 41. a5 {[%emt 0:00:00]} Kf6 {[%emt 0:02:16]} 42. Ke3 {[%emt 0:00:00]} e5 {[%emt 0:00:07]} 43. fxe5+ {[%emt 0:00:00]} Kxe5 {[%emt 0:00:01]} 44. Bf7 {[%emt 0:00:00]} Nb7 {[%emt 0:00:54]} 45. a6 {[%emt 0:00:00]} Nc5 {[%emt 0:00:01]} 46. Bc4 {[%emt 0:00:00]} b3 {[%emt 0:02:23]} 47. Kd2 {[%emt 0:00:00]} Kd4 {[%emt 0:00:01]} 48. Bf1 {[%emt 0:00:00]} Ne4+ {[%emt 0:00:16]} 49. Kc1 {[%emt 0:07:00]} Kc3 {[%emt 0:00:03]} 50. Bg2 {[%emt 0:00:30]} 0-1

[Event "18th Chefchaouen Open 2019"]
[Site "Chefchaouen"]
[Date "2019.07.21"]
[Round "9.2"]
[White "Gorbatov, Alexej"]
[Black "Levin, Evgeny A."]
[Result "1/2-1/2"]
[ECO "C01"]
[WhiteElo "2374"]
[BlackElo "2504"]
[Annotator "ChessBase"]
[PlyCount "28"]
[EventDate "2019.07.15"]
[EventType "swiss"]
[EventCountry "MAR"]
[SourceTitle "playchess.com"]
[Source "ChessBase"]
[SourceQuality "1"]
[TimeControl "5400+30"]

1. e4 {[%emt 0:00:00]} e6 {[%emt 0:00:00]} 2. d4 {[%emt 0:00:02]} d5 {[%emt 0:00:00]} 3. Nc3 {[%emt 0:01:17]} Nf6 {[%emt 0:00:00]} 4. exd5 {[%emt 0:00:09]} exd5 {[%emt 0:00:08]} 5. Bg5 {[%emt 0:00:06]} Be7 {[%emt 0:00:23]} 6. Bd3 {[%emt 0:02:07]} Nc6 {[%emt 0:01:44]} 7. Nge2 {[%emt 0:00:19]} O-O {[%emt 0:00:13]} 8. a3 {[%emt 0:00:19]} Bg4 {[%emt 0:00:38]} 9. Qd2 {[%emt 0:02:17]} Bxe2 {[%emt 0:01:10]} 10. Bxe2 {[%emt 0:00:54]} Nd7 {[%emt 0:00:28]} 11. Bf4 {[%emt 0:00:46]} Nf6 {[%emt 0:00:08]} 12. Bg5 {[%emt 0:00:04]} Nd7 {[%emt 0:00:03]} 13. Bf4 {[%emt 0:00:03]} Nf6 {[%emt 0:00:03]} 14. Bg5 {[%emt 0:00:05]} Nd7 {[%emt 0:00:02]} 1/2-1/2

[Event "18th Chefchaouen Open 2019"]
[Site "Chefchaouen"]
[Date "2019.07.21"]
[Round "9.4"]
[White "Djuric, Stefan"]
[Black "Duzhakov, Ilya"]
[Result "1/2-1/2"]
[ECO "D71"]
[WhiteElo "2368"]
[BlackElo "2383"]
[Annotator "NA"]
[PlyCount "41"]
[EventDate "2019.07.15"]
[EventType "swiss"]
[EventCountry "MAR"]
[SourceTitle "playchess.com"]
[Source "ChessBase"]
[SourceQuality "1"]
[TimeControl "5400+30"]

1. d4 {[%emt 0:09:35]} Nf6 {[%emt 0:00:00]} 2. c4 {[%emt 0:00:12]} g6 {[%emt 0:00:08]} 3. g3 {[%emt 0:00:33]} c6 {[%emt 0:01:00]} 4. Nc3 {[%emt 0:03:24]} d5 {[%emt 0:00:22]} 5. cxd5 {[%emt 0:00:12]} cxd5 {[%emt 0:00:30]} 6. Nh3 {[%emt 0:00:03]} Bg7 {[%emt 0:04:43]} 7. Nf4 {[%emt 0:00:07]} O-O {[%emt 0:03:59]} 8. Bg2 {[%emt 0:02:34]} Nc6 {[%emt 0:01:05]} 9. O-O {[%emt 0:03:32]} e6 {[%emt 0:01:41]} 10. e3 {[%emt 0:02:47]} b6 {[%emt 0:04:46]} 11. Rb1 {[%emt 0:00:52]} a5 {[%emt 0:04:12]} 12. Re1 {[%emt 0:06:00]} Ba6 {[%emt 0:03:21]} 13. a3 {[%emt 0:01:45]} Rc8 {[%emt 0:00:48]} 14. Nd3 {[%emt 0:00:33]} Ne8 {[%emt 0:09:06]} 15. Na4 {[%emt 0:06:34]} Nd6 {[%emt 0:04:37]} 16. Bf1 {[%emt 0:01:23]} Bb5 {[%emt 0:13:20]} 17. Nc3 {[%emt 0:00:18]} Ba6 {[%emt 0:01:11]} 18. Na4 {[%emt 0:00:55]} Bb5 {[%emt 0:01:48]} 19. Nc3 {[%emt 0:00:34]} Ba6 {[%emt 0:00:13]} 20. Na4 {[%emt 0:58:07]} Ra8 {[%emt 0:43:10]} 21. Ra1 {[%emt 0:00:30]} 1/2-1/2

[Event "18th Chefchaouen Open 2019"]
[Site "Chefchaouen"]
[Date "2019.07.21"]
[Round "9.6"]
[White "Ashraf, Shereif"]
[Black "Chennaoui, Yasin"]
[Result "1-0"]
[ECO "A55"]
[WhiteElo "2292"]
[BlackElo "2092"]
[Annotator "NA"]
[PlyCount "77"]
[EventDate "2019.07.15"]
[EventType "swiss"]
[EventCountry "MAR"]
[SourceTitle "playchess.com"]
[Source "ChessBase"]
[SourceQuality "1"]
[TimeControl "5400+30"]

1. d4 {[%emt 0:00:00]} d6 {[%emt 0:00:00]} 2. Nf3 {[%emt 0:00:00]} Nf6 {[%emt 0:00:00]} 3. c4 {[%emt 0:00:00]} Nbd7 {[%emt 0:00:00]} 4. Nc3 {[%emt 0:00:08]} e5 {[%emt 0:00:00]} 5. g3 {[%emt 0:00:05]} Be7 {[%emt 0:00:00]} 6. Bg2 {[%emt 0:00:10]} O-O {[%emt 0:00:00]} 7. O-O {[%emt 0:00:10]} c6 {[%emt 0:00:02]} 8. e4 {[%emt 0:00:12]} Re8 {[%emt 0:00:01]} 9. h3 {[%emt 0:00:20]} Bf8 {[%emt 0:00:31]} 10. Qc2 {[%emt 0:03:56]} a6 {[%emt 0:00:06]} 11. a4 {[%emt 0:00:09]} a5 {[%emt 0:03:04]} 12. Be3 {[%emt 0:01:30]} Qc7 {[%emt 0:13:25]} 13. Rad1 {[%emt 0:02:53]} b6 {[%emt 0:02:39]} 14. Rfe1 {[%emt 0:05:06]} Ba6 {[%emt 0:03:07]} 15. Bf1 {[%emt 0:13:28]} Bb7 {[%emt 0:00:07]} 16. d5 {[%emt 0:00:34]} Rac8 {[%emt 0:03:16]} 17. Nd2 {[%emt 0:03:20]} cxd5 {[%emt 0:04:24]} 18. cxd5 {[%emt 0:01:22]} Nc5 {[%emt 0:00:12]} 19. Bb5 {[%emt 0:01:57]} Nfd7 {[%emt 0:04:07]} 20. Bxc5 {[%emt 0:11:50]} Nxc5 {[%emt 0:20:19]} 21. Bxe8 {[%emt 0:00:16]} Rxe8 {[%emt 0:00:02]} 22. Nb5 {[%emt 0:01:25]} Qd7 {[%emt 0:00:19]} 23. Nc4 {[%emt 0:13:04]} Ba6 {[%emt 0:05:20]} 24. Nxb6 {[%emt 0:03:26]} Qb7 {[%emt 0:00:22]} 25. Nc4 {[%emt 0:00:52]} Bxb5 {[%emt 0:00:07]} 26. axb5 {[%emt 0:01:01]} Qxb5 {[%emt 0:00:02]} 27. Re3 {[%emt 0:07:53]} Rb8 {[%emt 0:02:57]} 28. b3 {[%emt 0:03:44]} Nxb3 {[%emt 0:02:59]} 29. Rb1 {[%emt 0:00:21]} a4 {[%emt 0:00:02]} 30. Nd2 {[%emt 0:00:33]} Qd7 {[%emt 0:00:24]} 31. Nxb3 {[%emt 0:00:21]} axb3 {[%emt 0:00:13]} 32. Rexb3 {[%emt 0:00:42]} Rxb3 {[%emt 0:02:59]} 33. Rxb3 {[%emt 0:00:10]} Qxh3 {[%emt 0:00:42]} 34. Rb8 {[%emt 0:00:25]} Qd7 {[%emt 0:01:34]} 35. Qc6 {[%emt 0:00:27]} Qe7 {[%emt 0:00:15]} 36. Re8 {[%emt 0:00:17]} Qxe8 {[%emt 0:08:40]} 37. Qxe8 {[%emt 0:00:11]} g6 {[%emt 0:00:02]} 38. f4 {[%emt 0:00:54]} f6 {[%emt 0:00:07]} 39. Kf1 {[%emt 0:01:31]} 1-0